Cogmind - Beta 13 @@@ ROGUE MODE // 2024.05.05 @ 15:46:13 Player: Johnny5001 Result: Destroyed by G-67 Veteran with Plasma Rifle Performance ------------- Evolutions (6) 3000 Regions Visited (12) 2400 Robots Destroyed (43) 215 Value Destroyed (1707) 1707 Prototype IDs (1) 20 Alien Tech Used (0) 0 Bonus (1172) 1172 TOTAL SCORE: 8514 Bonus ------- Follower Combat Kills 880 Entered DSFs 500 Friendly Fire -208 Cogmind --------- Core Integrity 0/1150 Matter 220/300 Energy 99/100 System Corruption 14% Temperature Cool (37) Movement Core (50) Location -4/Upper Caves Parts ------- > --- POWER (1) -------- (None) > --- PROPULSION (7) --- (None) > --- UTILITY (8) ------ Enhanced Optical Array Advanced Targeting Computer > --- WEAPON (3) ------- (None) > --- INVENTORY (5) ---- Makeshift Power Source Damper Plating Peak State ------------ > --- POWER ------------ Antimatter Reactor > --- PROPULSION ------- Carbon-fiber Leg Flexi-carbon Leg Armored Huge Wheel Armored Huge Wheel Centrium Wheel > --- UTILITY ---------- Large Storage Unit Advanced Weight Redist. System Advanced Weight Redist. System Visual Processing Unit Sensor Array Improved Light Armor Plating Improved Medium Armor Plating Improved Hacking Suite > --- WEAPON ----------- KE Penetrator Railgun Heavy Flail > --- INVENTORY -------- Ion Engine Angular Momentum Engine Light Angular Momentum Engine Neutrino Core Compact Wheel Gravmag System Improved Gravmag System Advanced Terrain Scanner Power Shielding Hardened Medium Armor Plating Improved Medium Armor Plating EM Pulse Cannon KE Penetrator Mace [Rating: 81] Favorites ----------- Power Improved Ion Engine Engine Improved Ion Engine Power Core Micro Nuclear Core Reactor Antimatter Reactor Propulsion Improved Aluminum Leg Treads Improved Treads Leg Improved Aluminum Leg Wheel Armored Huge Wheel Hover Unit Improved Gravmag System Flight Unit Makeshift Flight Unit Utility Improved Hacking Suite Device Sensor Array Storage Large Storage Unit Processor Visual Processing Unit Hackware Improved Hacking Suite Protection Improved Light Armor Plating Weapon Heavy Flail Energy Cannon Plasma Cannon Ballistic Gun Autogun Ballistic Cannon Enhanced Gauss Cannon Launcher Improved Grenade Launcher Impact Weapon Heavy Flail Build | -11 -10 -9 -8 -7 -7 -6 -5 -5 -4 -4 -4 -4 ------- Run | Yrd Mat Mat Mat Fac DSF Fac Fac Ext Fac Was Fac Upp Slots Evolved 12 | . . 2 2 2 . 2 2 . 2 . . . Power . | . . . . . . . . . . . . . Propulsion 5 | . . 1 1 . . 1 . . 2 . . . Utility 6 | . . 1 1 1 . 1 2 . . . . . Weapon 1 | . . . . 1 . . . . . . . . Parts Attached 104 | 6 9 10 2 1 6 14 10 11 9 4 6 16 Power 11 | 1 . 1 . . 1 1 1 1 2 . 1 2 Engine 6 | 1 . 1 . . 1 1 . . . . 1 1 Core 3 | . . . . . . . 1 1 . . . 1 Reactor 2 | . . . . . . . . . 2 . . . Propulsion 31 | 2 2 4 1 . 1 6 2 4 4 1 . 4 Treads 1 | . . . . . . . . 1 . . . . Leg 19 | 2 2 4 1 . 1 5 . 3 1 . . . Wheel 4 | . . . . . . . 1 . 3 . . . Hover 4 | . . . . . . 1 1 . . 1 . 1 Flight 3 | . . . . . . . . . . . . 3 Utility 35 | 1 3 1 1 . 2 4 5 4 2 2 4 6 Device 8 | . 2 1 . . . . 2 2 . . 1 . Storage 3 | 1 1 . . . 1 . . . . . . . Processor 6 | . . . . . . 1 . . . . 1 4 Hackware 4 | . . . . . 1 3 . . . . . . Protection 14 | . . . 1 . . . 3 2 2 2 2 2 Artifact . | . . . . . . . . . . . . . Weapon 27 | 2 4 4 . 1 2 3 2 2 1 1 1 4 Energy Gun . | . . . . . . . . . . . . . Energy Cannon 3 | . . . . 1 . 1 . . . . 1 . Ballistic Gun 15 | 2 4 2 . . . . 2 1 1 1 . 2 Ballistic Cannon 1 | . . . . . . . . . . . . 1 Launcher 3 | . . . . . . 2 . 1 . . . . Special Weapon . | . . . . . . . . . . . . . Impact Weapon 5 | . . 2 . . 2 . . . . . . 1 Slashing Weapon . | . . . . . . . . . . . . . Piercing Weapon . | . . . . . . . . . . . . . Special Melee Weapon . | . . . . . . . . . . . . . Unidentified Prototypes . | . . . . . . . . . . . . . Corrupted Parts 2 | . . . . . . . 1 . . . . 1 System Corruption 11 | . . . . . . . 5 . . . . 6 Parts Lost 52 | . . . . . 2 9 1 4 6 . 18 12 Power 3 | . . . . . . . . . . . 2 1 Propulsion 20 | . . . . . 1 6 . 1 3 . 5 4 Utility 19 | . . . . . . 2 1 2 2 . 7 5 Weapon 10 | . . . . . 1 1 . 1 1 . 4 2 Highest Loss Streak 18 | . . . . . 1 5 1 2 3 . 18 8 To Critical Strikes 2 | . . . . . . . . . . . 2 . Average Slot Usage (%) 80 | . 98 99 100 90 96 74 89 92 87 83 80 27 Engine 3 | . 14 11 9 7 7 5 5 . . . . . Core 1 | . . . . . . . . 5 . . . 1 Reactor 1 | . . . . . . . . . 4 5 4 . Leg 14 | . 28 32 36 30 30 13 6 12 10 . . . Wheel 4 | . . . . . . . 3 5 12 21 18 . Hover 1 | . . . . . . . 9 1 . 3 3 2 Device 12 | . 12 22 18 15 15 . 11 15 15 15 13 . Storage 6 | . 14 11 9 7 7 6 5 5 5 5 5 4 Processor 4 | . . . . . . 6 5 5 5 5 5 10 Hackware 4 | . . . . . 4 22 14 8 4 . . . Protection 5 | . . . 9 7 7 . 7 8 9 12 13 . Ballistic Gun 11 | . 28 19 18 15 9 . 5 10 9 8 9 1 Impact Weapon 3 | . . 2 . . 4 6 5 5 5 5 3 3 Naked Turns . | . . . . . . . . . . . . . Heaviest Build 73 | 12 22 25 30 37 50 50 53 57 62 70 73 72 Greatest Support 97 | 20 26 39 52 52 57 70 30 64 97 97 97 24 Greatest Overweight (x) 14 | . . . . . 1 14 2 1 . . 2 9 Average Overweight (x) . | . . . . . . 1 1 . . . . 2 Largest Inventory Capacity 15 | 8 10 10 10 10 15 15 15 15 15 15 15 15 Average Capacity 13 | 7 9 10 10 10 13 15 15 15 15 15 15 14 Most Carried 15 | 6 10 10 10 10 15 15 15 15 15 15 15 15 Average Carried 12 | 3 8 9 9 10 12 12 13 14 14 14 14 11 Final Capacity 15 | 8 10 10 10 10 15 15 15 15 15 15 15 5 Final Carried 15 | 6 10 10 10 10 15 15 15 15 15 15 11 5 Class Distribution -------------------- 73% | Mutant 18% | Hacker-Mutant 5% | Commander-Mutant Dominant Class ---------------- Mutant | -10/Materials Mutant | -9/Materials Mutant | -8/Materials Skirmisher | -7/Factory Mutant | -7/DSF Hacker-Mutant | -6/Factory Hacker-Mutant | -5/Factory Hacker-Mutant | -5/Extension Mutant | -4/Factory Mutant | -4/Waste Mutant | -4/Factory Mutant | -4/Upper Caves Resources | -11 -10 -9 -8 -7 -7 -6 -5 -5 -4 -4 -4 -4 ----------- Run | Yrd Mat Mat Mat Fac DSF Fac Fac Ext Fac Was Fac Upp Matter Collected 1996 | 188 83 42 . . 359 . 73 545 338 . . 368 Remotely . | . . . . . . . . . . . . . Salvage Created 1864 | . 85 130 . . 97 239 66 398 625 . . 224 Parts 104 | . 11 18 . . 6 10 2 12 35 . . 10 Haulers Intercepted . | . . . . . . . . . . . . . Recyclers Shooed . | . . . . . . . . . . . . . Parts Field Recycled . | . . . . . . . . . . . . . Retrieved Matter . | . . . . . . . . . . . . . Parts Self-Destructed 11 | . . . . . . . . . . . . 11 Prevented 2 | . . . . . . . . . . . . 2 Kills | -11 -10 -9 -8 -7 -7 -6 -5 -5 -4 -4 -4 -4 ------- Run | Yrd Mat Mat Mat Fac DSF Fac Fac Ext Fac Was Fac Upp Combat Hostiles Destroyed 41 | . 5 7 . . 2 5 1 4 10 . . 7 Melee 3 | . . . . . 1 . 1 . . . . 1 Guns 28 | . 5 7 . . . . . 4 10 . . 2 Cannons 4 | . . . . . 1 2 . . . . . 1 AOE 3 | . . . . . . 3 . . . . . . Classes Destroyed 8 | . 1 1 . . 1 2 . 1 1 . . 1 Recycler 2 | . . . . . . . . 1 1 . . . Swarmer 20 | . 5 6 . . 1 . . . 4 . . 4 Grunt 10 | . . . . . . 4 . 3 3 . . . Duelist 1 | . . . . . . 1 . . . . . . Sentry 4 | . . 1 . . . . 1 1 1 . . . Specialist 1 | . . . . . 1 . . . . . . . Hunter 2 | . . . . . . . . . . . . 2 Programmer 3 | . . . . . . . . . 2 . . 1 Best Kill Streak 5 | . 5 3 . . 1 3 1 3 3 . . 3 Combat Bots Only 5 | . 5 3 . . 1 3 1 3 2 . . 3 Max Kills in Single Turn 2 | . 1 2 . . 1 1 1 2 2 . . 1 Gunslinging 1 | . . 1 . . . . . . . . . . Exploded 1 | . . . . . . 1 . . . . . . Melee 1 | . . . . . 1 . 1 . . . . 1 Uniques/NPCs Destroyed . | . . . . . . . . . . . . . Combat | -11 -10 -9 -8 -7 -7 -6 -5 -5 -4 -4 -4 -4 -------- Run | Yrd Mat Mat Mat Fac DSF Fac Fac Ext Fac Was Fac Upp Hostile Shots Fired 760 | . 48 27 43 . 32 47 27 44 95 . 203 194 Missed 247 | . 11 8 12 . 10 14 8 17 26 . 74 67 Damage Taken 8996 | . 315 174 491 . 511 813 412 583 1344 . 2219 2134 Core 1664 | . 64 16 59 . 126 81 95 69 75 . 319 760 Absorbed by Shields 159 | . . . . . . . . 159 . . . . Redirected to Shielding 55 | . . . . . . . . . . . 55 . Regen/Repaired (Parts) 39 | . . 39 . . . . . . . . . . Core Remaining (%) 87 | 100 74 96 89 . 82 90 . 83 . . . . Volleys Fired 142 | . 12 10 . . 2 11 4 23 43 . 8 29 Largest 2 | . 2 2 . . 2 2 2 2 2 . 2 1 Hottest 143 | . 46 46 . . 103 143 53 63 68 . 68 57 Shots Fired 251 | . 24 19 . . 4 16 8 46 86 . 16 32 Gun 228 | . 24 19 . . 2 . 8 45 86 . 16 28 Cannon 15 | . . . . . 2 9 . . . . . 4 Launcher 8 | . . . . . . 7 . 1 . . . . Special . | . . . . . . . . . . . . . Kinetic 232 | . 24 19 . . 2 . 8 45 86 . 16 32 Thermal 7 | . . . . . 2 5 . . . . . . Explosive 8 | . . . . . . 7 . 1 . . . . Electromagnetic 4 | . . . . . . 4 . . . . . . Robot Hit Streak 12 | . 2 10 . . 4 7 10 11 12 . 5 4 Robot Miss Streak 7 | . 2 2 . . . 2 . 4 7 . 2 3 Penetration Max 1 | . . . . . . . . 1 1 . . . Secondary Targets 4 | . 2 1 . . . . . 1 . . . . Max Gunslinging Chain 1 | . 1 1 . . . . . 1 . . . . Shots Hit Robots 169 | . 12 14 . . 2 12 10 22 48 . 11 38 Core Hits 79 | . 6 8 . . 2 13 2 12 23 . 3 10 Critical Kills 3 | . . 1 . . . . . 2 . . . . Critical Parts Destroyed 7 | . . . . . . 1 1 1 1 . . 3 Critical Strikes 10 | . . 1 . . . 1 1 3 1 . . 3 Destroy 5 | . . 1 . . . . . 3 1 . . . Smash 5 | . . . . . . 1 1 . . . . 3 Melee Attacks 80 | . . 4 . . 6 2 7 10 18 . . 33 Impact 80 | . . 4 . . 6 2 7 10 18 . . 33 Slashing . | . . . . . . . . . . . . . Piercing . | . . . . . . . . . . . . . Sneak Attacks . | . . . . . . . . . . . . . Combat Hostiles . | . . . . . . . . . . . . . Follow-up Attacks . | . . . . . . . . . . . . . Damage Inflicted 4430 | . 220 214 30 . 62 669 225 711 1270 . 190 839 Guns 2887 | . 219 214 . . . . 148 634 1270 . 190 212 Cannons 236 | . . . . . 25 166 . . . . . 45 Explosions 536 | . . . . . . 460 . 76 . . . . Melee 739 | . . . . . 37 43 77 . . . . 582 Ramming 32 | . 1 . 30 . . . . 1 . . . . Kinetic 2932 | . 219 214 . . . . 148 634 1270 . 190 257 Thermal 127 | . . . . . 25 102 . . . . . . Explosive 536 | . . . . . . 460 . 76 . . . . Electromagnetic 64 | . . . . . . 64 . . . . . . Impact 739 | . . . . . 37 43 77 . . . . 582 Slashing . | . . . . . . . . . . . . . Piercing . | . . . . . . . . . . . . . Highest Corruption 14 | . . . . . . . 5 6 2 2 2 14 Average Corruption 6 | . . . . . . . 5 5 1 2 2 10 Corruption Purged . | . . . . . . . . . . . . . Corruption Blocked . | . . . . . . . . . . . . . Effects 53 | . . . . . . . . 21 . 1 3 28 Message Errors 15 | . . . . . . . . 6 . 1 . 8 Matter Fused 7 | . . . . . . . . 5 . . . 2 Heat Flow Errors 9 | . . . . . . . . 3 . . . 6 Energy Discharges 4 | . . . . . . . . 2 . . 1 1 Parts Fused 1 | . . . . . . . . 1 . . . . Data Loss (minor) 3 | . . . . . . . . . . . . 3 Data Loss (major) 3 | . . . . . . . . 1 . . 1 1 Misfires 6 | . . . . . . . . 2 . . . 4 Alerts 2 | . . . . . . . . . . . 1 1 Misdirections 1 | . . . . . . . . . . . . 1 Weapon Failures 2 | . . . . . . . . 1 . . . 1 Overload Shots . | . . . . . . . . . . . . . Overflow Damage 244 | . . . . . . 43 27 2 . . . 172 Projectiles . | . . . . . . . . . . . . . Explosions 2 | . . . . . . . . 2 . . . . Melee 242 | . . . . . . 43 27 . . . . 172 Knockbacks 2 | . . . . . . . . . . . . 2 Impact 1 | . . . . . . . . . . . . 1 Kinetic 1 | . . . . . . . . . . . . 1 Secondary . | . . . . . . . . . . . . . Self-Inflicted Damage 126 | . . . . . . 70 . 56 . . . . Shots 5 | . . . . . . 4 . 1 . . . . Rammed 1 | . . . . . . . . 1 . . . . Targets Rammed 7 | . 2 . 4 . . . . 1 . . . . Kicked 6 | . 2 . 4 . . . . . . . . . Crushed . | . . . . . . . . . . . . . Highest Temperature 257 | . 6 2 11 . 25 257 . 178 28 . 17 232 Average Temperature 69 | . 4 1 6 . 16 160 . 52 9 . 10 76 Received Heat Transfer 1337 | . 30 9 234 . 18 324 27 185 244 . 199 67 Siege Activations . | . . . . . . . . . . . . . Robots Corrupted . | . . . . . . . . . . . . . Combat Hostiles . | . . . . . . . . . . . . . Parts Fried 1 | . . . . . . . . . . . . 1 Impact Corruptions 12 | . . . . . . 1 1 . . . . 10 Robots Melted . | . . . . . . . . . . . . . Combat Hostiles . | . . . . . . . . . . . . . Parts Melted . | . . . . . . . . . . . . . Heat Transferred 250 | . . . . . 50 200 . . . . . . Parts Sabotaged . | . . . . . . . . . . . . . Parts Stolen . | . . . . . . . . . . . . . Parts Stripped . | . . . . . . . . . . . . . Power Chain Reactions . | . . . . . . . . . . . . . Alert | -11 -10 -9 -8 -7 -7 -6 -5 -5 -4 -4 -4 -4 ------- Run | Yrd Mat Mat Mat Fac DSF Fac Fac Ext Fac Was Fac Upp Peak Influence 500 | . 150 285 200 91 135 175 111 500 339 87 111 . Initial 245 | . . 63 42 91 63 65 85 53 245 87 60 . Average 161 | . 65 145 111 91 76 139 94 253 228 87 62 . Maximum Alert Level 2 | . . 1 1 . . . . 2 1 . . . Low Security (%) 67 | 100 100 82 99 100 100 100 100 39 23 100 100 . Level 1 30 | . . 17 . . . . . 49 76 . . . Level 2 2 | . . . . . . . . 11 . . . . Level 3 . | . . . . . . . . . . . . . Level 4 . | . . . . . . . . . . . . . Level 5 . | . . . . . . . . . . . . . High Security . | . . . . . . . . . . . . . Max Security . | . . . . . . . . . . . . . Squads Dispatched 20 | . 1 . 2 . 1 1 . 3 10 . 2 . Investigation 9 | . 1 . . . . . . 3 4 . 1 . Extermination 1 | . . . . . . . . . 1 . . . Reinforcement 6 | . . . 2 . 1 . . . 2 . 1 . Assault . | . . . . . . . . . . . . . Garrison 4 | . . . . . . 1 . . 3 . . . Intercept . | . . . . . . . . . . . . . Searches Triggered . | . . . . . . . . . . . . . Construction Impeded 2 | . . . . . . . . . 1 . 1 . Haulers Reinforced 1 | . . . . . . . . . 1 . . . Active Scanning Responses . | . . . . . . . . . . . . . Cargo Convoy Interrupts . | . . . . . . . . . . . . . Stealth | -11 -10 -9 -8 -7 -7 -6 -5 -5 -4 -4 -4 -4 --------- Run | Yrd Mat Mat Mat Fac DSF Fac Fac Ext Fac Was Fac Upp Distress Signals 6 | . . . 1 . . . 1 2 2 . . . Communications Jammed . | . . . . . . . . . . . . . Distress Signals . | . . . . . . . . . . . . . Times Spotted 136 | . 11 12 15 . 6 8 7 24 25 . 10 18 Peak Tracking Total 9 | . 6 3 7 . 6 4 5 5 7 . 9 7 Tactical Retreats 17 | . 1 . 3 . 2 . . 1 6 . . 4 Traps | -11 -10 -9 -8 -7 -7 -6 -5 -5 -4 -4 -4 -4 ------- Run | Yrd Mat Mat Mat Fac DSF Fac Fac Ext Fac Was Fac Upp Traps Triggered 10 | . 1 . . . 1 2 1 2 2 . 1 . Indirectly . | . . . . . . . . . . . . . Trap Hack Attempts . | . . . . . . . . . . . . . Triggered . | . . . . . . . . . . . . . Disarmed . | . . . . . . . . . . . . . Reprogrammed . | . . . . . . . . . . . . . Reused . | . . . . . . . . . . . . . Traps Extracted . | . . . . . . . . . . . . . Installed . | . . . . . . . . . . . . . Triggered 5 | . . . . . . . . 2 . . . 3 Machines | -11 -10 -9 -8 -7 -7 -6 -5 -5 -4 -4 -4 -4 ---------- Run | Yrd Mat Mat Mat Fac DSF Fac Fac Ext Fac Was Fac Upp Machines Disabled 8 | . . . . . . 2 . 3 2 . . 1 Max in Single Turn 2 | . . . . . . 1 . 1 2 . . 1 Garrison Access 1 | . . . . . . 1 . . . . . . Energy Cycler 2 | . . . . . . . . 2 . . . . Machines Repaired . | . . . . . . . . . . . . . Machines Dismantled . | . . . . . . . . . . . . . Machines Sabotaged . | . . . . . . . . . . . . . Overloaded Fab Kills . | . . . . . . . . . . . . . Hacking | -11 -10 -9 -8 -7 -7 -6 -5 -5 -4 -4 -4 -4 --------- Run | Yrd Mat Mat Mat Fac DSF Fac Fac Ext Fac Was Fac Upp Machines Accessed 35 | . 3 4 3 2 . 4 1 10 6 . . 2 Terminals 25 | . 3 2 2 1 . 2 . 10 4 . . 1 Fabricators 2 | . . . . 1 . 1 . . . . . . Repair Stations 1 | . . 1 . . . . . . . . . . Recycling Units 2 | . . . 1 . . . 1 . . . . . Scanalyzers 2 | . . 1 . . . . . . 1 . . . Garrison Access 2 | . . . . . . 1 . . 1 . . . Total Hacks 83 | . 5 15 9 2 . 9 2 22 15 . . 4 Successful 50 | . 2 10 4 1 . 8 2 13 6 . . 4 Failed 33 | . 3 5 5 1 . 1 . 9 9 . . . Catastrophic 8 | . 1 . 1 1 . . . 1 4 . . . Database Lockouts . | . . . . . . . . . . . . . Manual 20 | . 4 3 2 1 . 3 . 3 4 . . . Terminals 61 | . 5 6 6 1 . 7 . 22 11 . . 3 Fabricators 2 | . . . . 1 . 1 . . . . . . Repair Stations 3 | . . 3 . . . . . . . . . . Recycling Units 5 | . . . 3 . . . 2 . . . . . Scanalyzers 8 | . . 6 . . . . . . 2 . . . Garrison Access 3 | . . . . . . 1 . . 2 . . . Terminal Hacks 29 | . 1 2 2 1 . 5 . 11 3 . . 4 Record 9 | . 1 2 1 . . . . 2 . . . 3 Open Door 6 | . . . . . . . . 5 . . . 1 Open DSF 1 | . . . . 1 . . . . . . . . Branch Access Points 1 | . . . 1 . . . . . . . . . Machine Index 1 | . . . . . . 1 . . . . . . Terminal Index 1 | . . . . . . . . 1 . . . . Alert Level 4 | . . . . . . 1 . 2 1 . . . Unreport Threat 2 | . . . . . . . . 1 1 . . . Locate Traps 2 | . . . . . . 2 . . . . . . Recall Reinforcements 1 | . . . . . . . . . 1 . . . Zone Layout 1 | . . . . . . 1 . . . . . . Fabricator Hacks . | . . . . . . . . . . . . . Repair Station Hacks 2 | . . 2 . . . . . . . . . . Scan Component 1 | . . 1 . . . . . . . . . . Repair 1 | . . 1 . . . . . . . . . . Recycling Unit Hacks 4 | . . . 2 . . . 2 . . . . . Process 1 | . . . 1 . . . . . . . . . Retrieve Matter 2 | . . . 1 . . . 1 . . . . . Retrieve Components 1 | . . . . . . . 1 . . . . . Scanalyzer 6 | . . 5 . . . . . . 1 . . . Insert Component 4 | . . 3 . . . . . . 1 . . . Analyze 2 | . . 2 . . . . . . . . . . Garrison Access Hacks 1 | . . . . . . 1 . . . . . . Seal Access 1 | . . . . . . 1 . . . . . . Unauthorized Hacks 8 | . 1 1 . . . 2 . 2 2 . . . Terminals 7 | . 1 1 . . . 1 . 2 2 . . . Botnet 7 | . 1 1 . . . 1 . 2 2 . . . Fabricators 1 | . . . . . . 1 . . . . . . Liberate 1 | . . . . . . 1 . . . . . . Repair Stations . | . . . . . . . . . . . . . Recycling Units . | . . . . . . . . . . . . . Scanalyzers . | . . . . . . . . . . . . . Garrison Access . | . . . . . . . . . . . . . Data Cores Recovered . | . . . . . . . . . . . . . Used . | . . . . . . . . . . . . . Hacking Detections 26 | . 3 4 1 1 . 3 . 7 6 . . 1 Full Trace Events 8 | . . . 1 . . . . 3 3 . . 1 Feedback Events 3 | . . . . . . . . 1 2 . . . Corruption 1 | . . . . . . . . . 1 . . . Hackware Fried 2 | . . . . . . . . 1 1 . . . Feedback Blocked . | . . . . . . . . . . . . . Robot Schematics Acquired . | . . . . . . . . . . . . . Robots Built . | . . . . . . . . . . . . . Authchips . | . . . . . . . . . . . . . Time . | . . . . . . . . . . . . . Total Robot Build Rating . | . . . . . . . . . . . . . Part Schematics Acquired 2 | . . 2 . . . . . . . . . . Parts Built . | . . . . . . . . . . . . . Authchips . | . . . . . . . . . . . . . Time . | . . . . . . . . . . . . . Total Part Build Rating . | . . . . . . . . . . . . . Parts Repaired 1 | . . 1 . . . . . . . . . . Time 32 | . . 32 . . . . . . . . . . Parts Recycled . | . . . . . . . . . . . . . Recycled Matter 18 | . . . 18 . . . . . . . . . Retrieved Matter . | . . . . . . . . . . . . . Retrieved Components . | . . . . . . . . . . . . . Parts Scanalyzed 3 | . . 2 . . . . . . 1 . . . Part Schematics Acquired 2 | . . 2 . . . . . . . . . . Parts Damaged . | . . . . . . . . . . . . . Bothacking | -11 -10 -9 -8 -7 -7 -6 -5 -5 -4 -4 -4 -4 ------------ Run | Yrd Mat Mat Mat Fac DSF Fac Fac Ext Fac Was Fac Upp Used RIF Installer . | . . . . . . . . . . . . . Robots Hacked . | . . . . . . . . . . . . . Non-combat . | . . . . . . . . . . . . . Combat . | . . . . . . . . . . . . . Robot Hacks Applied . | . . . . . . . . . . . . . Relay Couplers Released . | . . . . . . . . . . . . . Fabnet Peak Effective % . | . . . . . . . . . . . . . Robots Rewired 7 | . . . . . . . . 7 . . . . Allies Hacked . | . . . . . . . . . . . . . Hacks Repelled . | . . . . . . . . . . . . . Allies | -11 -10 -9 -8 -7 -7 -6 -5 -5 -4 -4 -4 -4 -------- Run | Yrd Mat Mat Mat Fac DSF Fac Fac Ext Fac Was Fac Upp Total Allies 12 | . . . . . . . . 12 . . . . Largest Group 8 | . . . . . . . . 8 8 . . . Highest-Rated Group 347 | . . . . . . . . 347 338 . . . Highest-Rated Ally 159 | . . . . . . . . 159 150 . . . Total Orders . | . . . . . . . . . . . . . Ally Attacks 116 | . . . . . . . . 99 17 . . . Total Damage 2564 | . . . . . . . . 2306 258 . . . Kills 21 | . . . . . . . . 19 2 . . . Allies Corrupted 1 | . . . . . . . . 1 . . . . Allies Melted . | . . . . . . . . . . . . . Intel | -11 -10 -9 -8 -7 -7 -6 -5 -5 -4 -4 -4 -4 ------- Run | Yrd Mat Mat Mat Fac DSF Fac Fac Ext Fac Was Fac Upp Robot Analysis Total . | . . . . . . . . . . . . . Derelict Logs Recovered . | . . . . . . . . . . . . . Drone Launches . | . . . . . . . . . . . . . Drone Recoveries . | . . . . . . . . . . . . . Exploration | -11 -10 -9 -8 -7 -7 -6 -5 -5 -4 -4 -4 -4 ------------- Run | Yrd Mat Mat Mat Fac DSF Fac Fac Ext Fac Was Fac Upp Turns Passed 4443 | 67 372 460 303 102 117 212 243 691 905 70 134 767 Spaces Moved 2655 | 46 251 285 222 84 66 84 143 420 557 68 98 331 Core 196 | 3 . . . . . 4 . . . . 4 185 Treads . | . . . . . . . . . . . . . Legs 1291 | 43 251 285 222 84 66 80 27 233 . . . . Wheels 1019 | . . . . . . . 113 187 557 68 94 . Hover 118 | . . . . . . . 3 . . . . 115 Flight 31 | . . . . . . . . . . . . 31 Fastest Speed 50 | 50 120 120 120 120 120 120 115 115 96 97 95 50 Average Speed 123 | 115 120 120 120 120 121 185 130 117 99 97 99 179 Slowest Speed 750 | 120 120 120 120 120 190 750 190 190 100 97 150 500 Overloaded Moves . | . . . . . . . . . . . . . Propulsion Burnouts . | . . . . . . . . . . . . . Robots Hopped . | . . . . . . . . . . . . . Cave-ins Triggered . | . . . . . . . . . . . . . Exploration Rate (%) 29 | 4 42 28 25 4 60 4 5 63 21 75 5 44 Regions Visited 12 Branch Regions 2 Pre-discovered Areas . | . . . . . . . . . . . . . Known Exits Taken 1 | . . . . 1 . . . . . . . . Unknown Exits Taken 8 | 1 1 1 1 . . 1 1 1 . . 1 . Scrap Searched 2 | . . . . . . . . . . . . 2 Spaces Dug 39 | . . 3 . . 3 1 4 10 18 . . . Terrain Destroyed 131 | . . 3 . . 3 35 4 17 65 . 3 1 Melee 36 | . . 3 . . 3 1 4 10 15 . . . Projectile 20 | . . . . . . . . . 17 . 2 1 AOE 74 | . . . . . . 34 . 7 33 . . . Terrain Rammed . | . . . . . . . . . . . . . Walls Destroyed . | . . . . . . . . . . . . . Machines Disabled . | . . . . . . . . . . . . . Actions | -11 -10 -9 -8 -7 -7 -6 -5 -5 -4 -4 -4 -4 --------- Run | Yrd Mat Mat Mat Fac DSF Fac Fac Ext Fac Was Fac Upp Total 3438 | 57 306 385 258 84 87 119 179 556 796 72 118 421 Wait 294 | . 3 61 29 . 5 1 7 19 163 . 5 1 Move 2644 | 45 250 284 221 83 65 83 142 419 557 67 97 331 Hop . | . . . . . . . . . . . . . Pick Up 58 | 6 14 7 2 . 3 5 6 5 3 1 . 6 Fast Attach 32 | 6 3 1 . 1 1 5 2 3 . . 2 8 Attach 36 | . . 2 2 . 1 6 5 1 4 4 4 7 Detach 7 | . 1 . . . . 2 1 . . . . 3 Swap 36 | . 6 7 . . 4 3 3 7 5 . . 1 Drop 41 | . 15 9 . . . 1 2 7 3 . 2 2 Fire 142 | . 12 10 . . 2 11 4 23 43 . 8 29 Melee 80 | . . 4 . . 6 2 7 10 18 . . 33 Ram 1 | . . . . . . . . 1 . . . . Kick 6 | . 2 . 4 . . . . . . . . . Crush . | . . . . . . . . . . . . . Escape Stasis 16 | . . . . . . . . 16 . . . . Rewire 45 | . . . . . . . . 45 . . . . Trap . | . . . . . . . . . . . . . Miscellaneous . | . . . . . . . . . . . . . Route ------- -11/Scrapyard -10/Materials -9/Materials -8/Materials -7/Factory -7/DSF -6/Factory -5/Factory -5/Extension (discovered 2 exits: *Fac / [*Cet]) -4/Factory -4/Waste -4/Factory (discovered 2 exits: [*Res] / *Upp) -4/Upper Caves History --------- Turn | Location | Event 49 | -11/Scrapyard | Discovered new exit (range 15) 68 | -11/Scrapyard | Entered Materials 302 | -10/Materials | Build established: Mutant 434 | -10/Materials | Discovered new exit (range 5) 440 | -10/Materials | Entered another Materials area 440 | -9/Materials | Evolved 2 slots: Propulsion x1, Utility x1 684 | -9/Materials | Repaired Imp. Aluminum Leg 878 | -9/Materials | Discovered new exit (range 14) 900 | -9/Materials | Entered another Materials area 900 | -8/Materials | Evolved 2 slots: Propulsion x1, Utility x1 1200 | -8/Materials | Discovered new exit (range 4) 1203 | -8/Materials | Entered Factory 1203 | -7/Factory | Evolved 2 slots: Utility x1, Weapon x1 1305 | -7/Factory | Identified exit to DSF 1305 | -7/Factory | Entered DSF 1333 | -7/DSF | Additional patrols routed to DSF 1406 | -7/DSF | Discovered new exit (range 11) 1422 | -7/DSF | Entered Factory 1422 | -6/Factory | Evolved 2 slots: Propulsion x1, Utility x1 1435 | -6/Factory | Garrison activated, responded to threat 1480 | -6/Factory | Lost 5 parts (4n1u) 1575 | -6/Factory | Discovered new exit (range 15) 1601 | -6/Factory | Lost 4 parts (2n1u1w) 1634 | -6/Factory | Entered another Factory area 1634 | -5/Factory | Evolved 2 slots: Utility x2 1719 | -5/Factory | Build established: Hacker-Mutant 1863 | -5/Factory | Discovered new exit (range 12) 1877 | -5/Factory | Entered Extension 1882 | -5/Extension | Disrupted transfer network 1951 | -5/Extension | Rescued a captive Derelict 1952 | -5/Extension | Rescued a captive Derelict 1975 | -5/Extension | Energy Cycler disabled 1975 | -5/Extension | Rescued a captive Derelict 1975 | -5/Extension | Rescued a captive Derelict 1975 | -5/Extension | Rescued a captive Derelict 1976 | -5/Extension | Rescued A7 1976 | -5/Extension | Rescued a captive Derelict 1978 | -5/Extension | Rescued a captive Derelict 1982 | -5/Extension | Rescued a captive Derelict 1986 | -5/Extension | Rescued a captive Derelict 1987 | -5/Extension | Rescued a captive Derelict 2211 | -5/Extension | Lost 3 allies 2238 | -5/Extension | Imp. Hacking Suite fried by hacking feedback 2536 | -5/Extension | Discovered new exit (range 10) 2539 | -5/Extension | Discovered new exit (range 6) 2568 | -5/Extension | Entered Factory 2568 | -4/Factory | Accompanied by 8 allies (A7) 2568 | -4/Factory | Evolved 2 slots: Propulsion x2 2622 | -4/Factory | Garrison activated, responded to threat 2941 | -4/Factory | Build established: Mutant 3142 | -4/Factory | Spotted B-86 Titan 3422 | -4/Factory | Imp. Hacking Suite fried by hacking feedback 3473 | -4/Factory | Manually triggered Chute Trap 3473 | -4/Factory | Sucked down chute 3473 | -4/Factory | Entered Waste 3473 | -4/Waste | The area was eerily silent 3492 | -4/Waste | Lost 3 parts (1n1u1w) 3500 | -4/Waste | Found Damper Plating 3535 | -4/Waste | Discovered new exit (range 10) 3543 | -4/Waste | Entered Factory 3649 | -4/Factory | Discovered new exit (range 15) 3651 | -4/Factory | Discovered new exit (range 22) 3677 | -4/Factory | Entered Upper Caves 3707 | -4/Upper Caves | Lost 18 parts (2p5n7u4w) 3990 | -4/Upper Caves | System corruption reached 10% 4011 | -4/Upper Caves | Core integrity fell below 50% 4074 | -4/Upper Caves | Lost 8 parts (1p4n3u) 4380 | -4/Upper Caves | Attracted the attention of an 0b10 base 4381 | -4/Upper Caves | Core integrity fell below 20% 4404 | -4/Upper Caves | Learned location of 1 exit from Proximity Caves 4444 | -4/Upper Caves | Destroyed by G-67 Veteran with Plasma Rifle Last Messages --------------- S-27 Virus destroyed. Penetrated by Slug. Lrg. Storage Unit destroyed. Dropped Enh. Gauss Cannon. System corrupted: Heat flow error (+266). Connecting with Outpost Terminal... >>Query(Status Report 231K) REPELLED LIGHT ASSEMBLED INCURSION. >>Query(Status Report 519C) DETECTED INCREASED ACTIVITY IN CAVE 76. >>Query(Status Report 860X) INTERCEPTED DERELICT INTEL. Data stored: Proximity Caves exits (x1). Searching scrap... Found HERF Cannon. Found Lgt. Angular Momentum Engine. Found Matter Compressor. Found 25 Matter. Critical hit (Burn: +50). [Achievement: Just Browsing] Map ----- +----------------------------------------------------+ | ????????????????###??????????????????????????????? | | ???????????????## ##?????????????????????????????? | | ??????????????## *##????????????????????????????? | | ??????????????# !%#????????????????????????????? | | ??????????????# ]#?????####???????????????????? | | ??????????????# #????## ####????????????????# | | ??????????????# ##???# #???#####???????? | | ??????????????# ##### #??## #???????# | | ??????????????## #???# #??##### | | ???????????????# # ##??## #### | | ???????????????# ### ### #???# # | | ???????????????# #?####?# #???# ? # | | ???????????????# #??????## ##???# #?? # | | ???????????????# #???????## #????## #### # | | ???????????????# #????????# ##???# | | ???????????????# #????????# #???# | | ???????????????# #???????## ##???# ######"#### | | ???????????????# #??????## ##????# #""""" ""# | | ???????????????# #??????# #?????# # ""# | | ???????????????# #?????## ##????# # T"# | | ???????????????# #?????# #????# # ""# | | ???????????????# ###???# #??### # !# | | ??????????????## #??##g g#### # %+ | | ??????????????# #### gY ## #""" % # | | ??????????????# ### #??" "# | | ??????????????# ## @ #??" "# | | ??????????????## ## ####+"##/## | | ???????????????# ## # | | ??????????????# ## ## | | ??????????????# ### ### #### | | ??????????????####"#####?# #?### ## #??? | | ?????????????????##??????# ????# ### ##?? | | ?????????????????????????# ????# #?# ### | | ?????????????????????????# ????# #?# | | ?????????????????????????## ????# #?## | | ???????????????????????????#????# #??#### | | ???????????????????????????????? #?????### | | ????????????????????????????????####???????## | | ????????????????????????????????????????????# | | ???????????????????????????????????????????# # | | ???????????????????????????????????????????# ## | | ???????????????????????????????????????????# ###? | | ???????????????????????????????????????????####??? | | ?????????????????????????????????????????????????? | | ?????????????????????????????????????????????????? | | ?????????????????????????????????????????????????? | | ?????????????????????????????????????????????????? | | ?????????????????????????????????????????????????? | | ?????????????????????????????????????????????????? | | ?????????????????????????????????????????????????? | +----------------------------------------------------+ Best States ------------- Heat Dissipation 43 Energy Generation 21 Energy Capacity 325 Matter Stores 300 Matter Capacity 300 Sight Range 22 Robot Scan Range 14 Terrain Scan Density 10 Additional Mass Support 9 Armor Coverage 1600 Resistance: EM 90 Power Shielding 33 Evasion (%) 55 Targeting Accuracy 32 Matter Filtering 30 Offensive Hacking 48 Item Schematics ----------------- Imp. Assault Rifle | -9/Materials | Scanalyzed Imp. Aluminum Leg | -9/Materials | Scanalyzed Robot Schematics ------------------ None Fabricated ------------ Nothing Alien Tech Used ----------------- None Achievements -------------- Just Browsing Wheee! Challenges ------------ None Game ------ Seed ShockFrostGenerator Manual? 0 Play Time 01:34:33 Cumulative 17.9 hours Start 2024.05.05 @ 13:08:34 End 2024.05.05 @ 15:46:13 Sessions 1 Manual Loads 0 Difficulty Rogue Special Mode None Game No. 15 Rogue 15 Adventurer 0 Explorer 0 Win Type - Total 0 Types 0/0/0/0/0/0/0/0/0 Lore% 19 Gallery% 25 Achievement% 23 Wizard Run 0 Options --------- Layout 1 ASCII 0 Keyboard 0 Movement Mouse Keybinds 0 Fullscreen 1 Font 24/Smallcaps Map View 50x35 Zoom Use 0% Tactical HUD 0 Map Filters NONE Filters NONE Steam 0 RUN: 5471365e-b15c-4884-95d9-e36df03c107c